[Event "Late-Titled-Tuesday-Blitz-December-26-2023"]
[Site "Chess.com"]
[Date "2023.12.26"]
[Round "6"]
[White "Elsa167"]
[Black "lucasmito"]
[Result "1-0"]
[WhiteElo "2984"]
[BlackElo "2739"]
[TimeControl "180+1"]
[EndTime "15:07:19 PST"]
[Termination "Elsa167 won on time"]

1. d4 {[%clk 0:03:00.9]} 1... Nf6 {[%clk 0:02:57.4]} 2. c4 {[%clk 0:03:01.3]}
2... e6 {[%clk 0:02:58]} 3. g3 {[%clk 0:03:01.7]} 3... d5 {[%clk 0:02:57.7]} 4.
Bg2 {[%clk 0:03:02.3]} 4... dxc4 {[%clk 0:02:58.4]} 5. Nf3 {[%clk 0:03:02.5]}
5... a6 {[%clk 0:02:58.5]} 6. O-O {[%clk 0:03:00.3]} 6... Nc6 {[%clk 0:02:58.5]}
7. a4 {[%clk 0:03:00]} 7... Rb8 {[%clk 0:02:57.5]} 8. a5 {[%clk 0:03:00.1]} 8...
Bb4 {[%clk 0:02:55]} 9. Ra4 {[%clk 0:02:40.4]} 9... Qd6 {[%clk 0:02:02.1]} 10.
Bf4 {[%clk 0:02:34.4]} 10... Qe7 {[%clk 0:01:58.1]} 11. Ne5 {[%clk 0:01:31.3]}
11... Nxe5 {[%clk 0:01:46.2]} 12. Bxe5 {[%clk 0:01:22]} 12... O-O {[%clk
0:01:37.7]} 13. Qc2 {[%clk 0:01:16.6]} 13... Bd7 {[%clk 0:01:27.7]} 14. Ra1
{[%clk 0:01:16.7]} 14... Bb5 {[%clk 0:01:24.1]} 15. Nc3 {[%clk 0:01:09.4]} 15...
Rbd8 {[%clk 0:00:59.3]} 16. Nxb5 {[%clk 0:01:05.5]} 16... axb5 {[%clk
0:00:59.4]} 17. Bxb7 {[%clk 0:01:03.2]} 17... c5 {[%clk 0:01:00]} 18. a6 {[%clk
0:00:59.1]} 18... cxd4 {[%clk 0:01:00]} 19. Bxf6 {[%clk 0:00:48.8]} 19... gxf6
{[%clk 0:00:58]} 20. Qe4 {[%clk 0:00:48.5]} 20... f5 {[%clk 0:00:53.5]} 21. Qc6
{[%clk 0:00:48]} 21... Bc5 {[%clk 0:00:26.7]} 22. Qxb5 {[%clk 0:00:34.5]} 22...
c3 {[%clk 0:00:21.1]} 23. bxc3 {[%clk 0:00:23]} 23... dxc3 {[%clk 0:00:22]} 24.
Qc4 {[%clk 0:00:21.2]} 24... Ba7 {[%clk 0:00:21.6]} 25. Rac1 {[%clk 0:00:18.3]}
25... Bd4 {[%clk 0:00:16.3]} 26. e3 {[%clk 0:00:18.3]} 26... Be5 {[%clk
0:00:12.3]} 27. Rc2 {[%clk 0:00:15.3]} 27... Rd2 {[%clk 0:00:10.5]} 28. Rfc1
{[%clk 0:00:11.6]} 28... Rfd8 {[%clk 0:00:10.6]} 29. Kg2 {[%clk 0:00:11.6]}
29... Qa3 {[%clk 0:00:07.5]} 30. Qb5 {[%clk 0:00:06.5]} 30... Bf6 {[%clk
0:00:04.5]} 31. Qb6 {[%clk 0:00:07]} 31... R8d6 {[%clk 0:00:03.2]} 32. Qc7
{[%clk 0:00:04.4]} 32... Kg7 {[%clk 0:00:03.4]} 33. Qc4 {[%clk 0:00:04.1]} 33...
Rxc2 {[%clk 0:00:02.5]} 34. Rxc2 {[%clk 0:00:04.4]} 34... Rd2 {[%clk 0:00:02.8]}
35. Rxd2 {[%clk 0:00:02.6]} 35... cxd2 {[%clk 0:00:03.7]} 36. Qe2 {[%clk
0:00:02.1]} 36... Qc1 {[%clk 0:00:02.1]} 37. Bf3 {[%clk 0:00:02.6]} 37... Qa1
{[%clk 0:00:02.5]} 38. Qd3 {[%clk 0:00:02.3]} 38... Bc3 {[%clk 0:00:02.1]} 39.
Be2 {[%clk 0:00:01.4]} 39... Bf6 {[%clk 0:00:01.8]} 40. Qc2 {[%clk 0:00:01.5]}
40... Bc3 {[%clk 0:00:01.7]} 41. Qd1 {[%clk 0:00:02]} 1-0

[Event "Late-Titled-Tuesday-Blitz-December-26-2023"]
[Site "Chess.com"]
[Date "2023.12.26"]
[Round "6"]
[White "staz_staz"]
[Black "katharinareinecke"]
[Result "1-0"]
[WhiteElo "2255"]
[BlackElo "2015"]
[TimeControl "180+1"]
[EndTime "15:07:21 PST"]
[Termination "staz_staz won on time"]

1. d4 {[%clk 0:03:00.9]} 1... d5 {[%clk 0:02:59.3]} 2. Nf3 {[%clk 0:02:57.1]}
2... Nf6 {[%clk 0:02:58.4]} 3. c4 {[%clk 0:02:54.8]} 3... c6 {[%clk 0:02:57.5]}
4. Nc3 {[%clk 0:02:51.6]} 4... e6 {[%clk 0:02:57.1]} 5. Bg5 {[%clk 0:02:49.9]}
5... Be7 {[%clk 0:02:56.8]} 6. e3 {[%clk 0:02:47.2]} 6... O-O {[%clk 0:02:56.6]}
7. Bd3 {[%clk 0:02:45.2]} 7... h6 {[%clk 0:02:55.6]} 8. h4 {[%clk 0:02:43.2]}
8... dxc4 {[%clk 0:02:54.2]} 9. Bxc4 {[%clk 0:02:41.3]} 9... b5 {[%clk
0:02:46.6]} 10. Bd3 {[%clk 0:02:41.2]} 10... a6 {[%clk 0:02:44.4]} 11. Bxf6
{[%clk 0:02:37.4]} 11... Bxf6 {[%clk 0:02:43.9]} 12. g4 {[%clk 0:02:36.6]} 12...
Nd7 {[%clk 0:02:33.3]} 13. g5 {[%clk 0:02:34.9]} 13... Be7 {[%clk 0:02:12.8]}
14. gxh6 {[%clk 0:02:32.4]} 14... g6 {[%clk 0:02:09.1]} 15. h5 {[%clk
0:02:16.9]} 15... g5 {[%clk 0:02:08.3]} 16. Ne4 {[%clk 0:01:50.7]} 16... c5
{[%clk 0:01:50.3]} 17. Rg1 {[%clk 0:01:44.6]} 17... f6 {[%clk 0:01:41.9]} 18.
Nh4 {[%clk 0:00:59.9]} 18... cxd4 {[%clk 0:01:19.1]} 19. h7+ {[%clk 0:00:44.2]}
19... Kg7 {[%clk 0:01:01.3]} 20. h6+ {[%clk 0:00:31.3]} 20... Kxh6 {[%clk
0:00:58.2]} 21. Nf5+ {[%clk 0:00:15.1]} 21... exf5 {[%clk 0:00:51.4]} 22. Rh1+
{[%clk 0:00:15.3]} 22... Kg7 {[%clk 0:00:51.1]} 23. Qh5 {[%clk 0:00:11.1]} 23...
Kh8 {[%clk 0:00:43]} 24. Ng3 {[%clk 0:00:07.6]} 24... Qe8 {[%clk 0:00:35.4]} 25.
Qh6 {[%clk 0:00:07.3]} 25... Qf7 {[%clk 0:00:32.7]} 26. Nxf5 {[%clk 0:00:07]}
26... dxe3 {[%clk 0:00:28.8]} 27. O-O-O {[%clk 0:00:06.2]} 27... Ne5 {[%clk
0:00:28]} 28. Be4 {[%clk 0:00:04.6]} 28... Bxf5 {[%clk 0:00:25.7]} 29. Bxf5
{[%clk 0:00:04.4]} 29... Qg7 {[%clk 0:00:15.2]} 30. fxe3 {[%clk 0:00:03.7]}
30... Qxh6 {[%clk 0:00:15]} 31. Rxh6 {[%clk 0:00:04.6]} 31... Rab8 {[%clk
0:00:11]} 32. Kb1 {[%clk 0:00:04.9]} 32... Rb7 {[%clk 0:00:10.3]} 33. a3 {[%clk
0:00:05.2]} 33... Rc7 {[%clk 0:00:10.3]} 34. e4 {[%clk 0:00:04.7]} 34... Bc5
{[%clk 0:00:09.5]} 35. Rc1 {[%clk 0:00:04.7]} 35... Bd4 {[%clk 0:00:09.3]} 36.
Rxc7 {[%clk 0:00:04.7]} 36... Nd3 {[%clk 0:00:07.6]} 37. e5 {[%clk 0:00:04.4]}
37... Bxe5 {[%clk 0:00:06.5]} 38. Bxd3 {[%clk 0:00:04]} 38... Rd8 {[%clk
0:00:05.4]} 39. Rc3 {[%clk 0:00:03]} 39... Bxc3 {[%clk 0:00:04.6]} 40. Bf5
{[%clk 0:00:02.8]} 40... Be5 {[%clk 0:00:03.4]} 41. Rg6 {[%clk 0:00:03.2]} 41...
Re8 {[%clk 0:00:02.2]} 42. Rh6 {[%clk 0:00:03.4]} 42... Rf8 {[%clk 0:00:02.2]}
43. Rh1 {[%clk 0:00:03.2]} 43... Rd8 {[%clk 0:00:01.9]} 44. Rc1 {[%clk
0:00:03.3]} 44... Rf8 {[%clk 0:00:01.8]} 45. Rc6 {[%clk 0:00:03.8]} 1-0

[Event "Late-Titled-Tuesday-Blitz-December-26-2023"]
[Site "Chess.com"]
[Date "2023.12.26"]
[Round "6"]
[White "SCIM"]
[Black "slidingknight2775"]
[Result "1/2-1/2"]
[WhiteElo "2516"]
[BlackElo "2686"]
[TimeControl "180+1"]
[EndTime "15:07:23 PST"]
[Termination "Game drawn by repetition"]

1. d4 {[%clk 0:03:00.9]} 1... d5 {[%clk 0:03:00]} 2. c4 {[%clk 0:03:00.2]} 2...
e6 {[%clk 0:03:00.3]} 3. Nf3 {[%clk 0:03:00.4]} 3... Nf6 {[%clk 0:03:00.4]} 4.
g3 {[%clk 0:03:00.9]} 4... dxc4 {[%clk 0:03:00.9]} 5. Qa4+ {[%clk 0:02:57.8]}
5... Nbd7 {[%clk 0:02:45.7]} 6. Qxc4 {[%clk 0:02:56.9]} 6... b6 {[%clk
0:02:46.2]} 7. Bg2 {[%clk 0:02:55.8]} 7... Bb7 {[%clk 0:02:46.3]} 8. O-O {[%clk
0:02:52.6]} 8... Be7 {[%clk 0:02:45.1]} 9. Nc3 {[%clk 0:02:37.6]} 9... O-O
{[%clk 0:02:44.5]} 10. Bg5 {[%clk 0:02:36.5]} 10... h6 {[%clk 0:02:30.1]} 11.
Bxf6 {[%clk 0:02:34.4]} 11... Nxf6 {[%clk 0:02:31]} 12. Ne5 {[%clk 0:02:30.3]}
12... Bxg2 {[%clk 0:02:31]} 13. Kxg2 {[%clk 0:02:29.7]} 13... c5 {[%clk
0:02:30.4]} 14. Nc6 {[%clk 0:02:25.2]} 14... Qc7 {[%clk 0:02:26.1]} 15. Nxe7+
{[%clk 0:02:24.2]} 15... Qxe7 {[%clk 0:02:27]} 16. dxc5 {[%clk 0:02:24.6]} 16...
Rfc8 {[%clk 0:02:05.4]} 17. b4 {[%clk 0:02:14.9]} 17... a5 {[%clk 0:01:56]} 18.
a3 {[%clk 0:02:13]} 18... axb4 {[%clk 0:01:56.2]} 19. axb4 {[%clk 0:02:12.4]}
19... Rxa1 {[%clk 0:01:56.8]} 20. Rxa1 {[%clk 0:02:12.4]} 20... bxc5 {[%clk
0:01:56.5]} 21. b5 {[%clk 0:02:11.3]} 21... Qb7+ {[%clk 0:01:54.9]} 22. Kg1
{[%clk 0:02:08.4]} 22... Nd5 {[%clk 0:01:48.1]} 23. Ne4 {[%clk 0:02:03.7]} 23...
Qc7 {[%clk 0:01:18.4]} 24. h4 {[%clk 0:01:36.7]} 24... Nb6 {[%clk 0:01:11.7]}
25. Qc2 {[%clk 0:01:34.3]} 25... c4 {[%clk 0:01:09.9]} 26. Nc3 {[%clk
0:01:30.9]} 26... Qc5 {[%clk 0:01:03.3]} 27. e4 {[%clk 0:01:25.7]} 27... Nd7
{[%clk 0:00:43.3]} 28. Kg2 {[%clk 0:01:13.6]} 28... Ne5 {[%clk 0:00:40.1]} 29.
Rb1 {[%clk 0:01:08.2]} 29... Nd3 {[%clk 0:00:35.7]} 30. b6 {[%clk 0:01:04.8]}
30... Qxb6 {[%clk 0:00:27.3]} 31. Qxd3 {[%clk 0:00:45.7]} 31... cxd3 {[%clk
0:00:28.2]} 32. Rxb6 {[%clk 0:00:44.3]} 32... Rxc3 {[%clk 0:00:28.7]} 33. Rb8+
{[%clk 0:00:41.1]} 33... Kh7 {[%clk 0:00:28.5]} 34. Rd8 {[%clk 0:00:41.7]} 34...
Kg6 {[%clk 0:00:25.5]} 35. Kf3 {[%clk 0:00:38.8]} 35... Kf6 {[%clk 0:00:13.1]}
36. Ke3 {[%clk 0:00:36.5]} 36... d2+ {[%clk 0:00:10.5]} 37. Kxd2 {[%clk
0:00:36.1]} 37... Rf3 {[%clk 0:00:11]} 38. Ke2 {[%clk 0:00:32.4]} 38... Ra3
{[%clk 0:00:11.5]} 39. Rd7 {[%clk 0:00:31.5]} 39... g6 {[%clk 0:00:10]} 40. Rb7
{[%clk 0:00:30.6]} 40... h5 {[%clk 0:00:09.5]} 41. Rc7 {[%clk 0:00:30.1]} 41...
Rb3 {[%clk 0:00:09.5]} 42. Ra7 {[%clk 0:00:29.5]} 42... Rc3 {[%clk 0:00:09.8]}
43. Rb7 {[%clk 0:00:29.5]} 43... Ra3 {[%clk 0:00:09.7]} 44. Rc7 {[%clk
0:00:29.3]} 44... Kg7 {[%clk 0:00:09.2]} 45. Rd7 {[%clk 0:00:25.5]} 45... Rc3
{[%clk 0:00:09.1]} 46. Rd3 {[%clk 0:00:23.7]} 46... Rc2+ {[%clk 0:00:08.1]} 47.
Ke3 {[%clk 0:00:23.8]} 47... Rc1 {[%clk 0:00:08.2]} 48. Rd7 {[%clk 0:00:22.8]}
48... Rc3+ {[%clk 0:00:08.1]} 49. Kf4 {[%clk 0:00:19.3]} 49... Rc5 {[%clk
0:00:07.2]} 50. Ke3 {[%clk 0:00:18.3]} 50... Rc3+ {[%clk 0:00:07.2]} 51. Ke2
{[%clk 0:00:18]} 51... Rc2+ {[%clk 0:00:07.4]} 52. Ke3 {[%clk 0:00:17.9]} 52...
Rc3+ {[%clk 0:00:07.4]} 1/2-1/2

[Event "Late-Titled-Tuesday-Blitz-December-26-2023"]
[Site "Chess.com"]
[Date "2023.12.26"]
[Round "6"]
[White "DanylaBagrov"]
[Black "ilya2700"]
[Result "1-0"]
[WhiteElo "2578"]
[BlackElo "2363"]
[TimeControl "180+1"]
[EndTime "15:07:24 PST"]
[Termination "DanylaBagrov won on time"]

1. d4 {[%clk 0:03:00.9]} 1... d5 {[%clk 0:02:59.7]} 2. c4 {[%clk 0:03:01.4]}
2... e6 {[%clk 0:03:00]} 3. cxd5 {[%clk 0:03:02.1]} 3... exd5 {[%clk 0:03:00.9]}
4. Bf4 {[%clk 0:03:02.1]} 4... Nf6 {[%clk 0:03:01.3]} 5. e3 {[%clk 0:03:01.4]}
5... Be7 {[%clk 0:03:01.4]} 6. Bd3 {[%clk 0:03:01.1]} 6... O-O {[%clk
0:03:01.6]} 7. Nc3 {[%clk 0:03:01.7]} 7... Nbd7 {[%clk 0:03:00.9]} 8. Nf3 {[%clk
0:02:53]} 8... b6 {[%clk 0:03:00.5]} 9. h3 {[%clk 0:02:48.3]} 9... Bb7 {[%clk
0:03:00.1]} 10. O-O {[%clk 0:02:45.7]} 10... c5 {[%clk 0:02:59.9]} 11. b3 {[%clk
0:02:43.5]} 11... Rc8 {[%clk 0:02:59.5]} 12. Rc1 {[%clk 0:02:42.9]} 12... Ne4
{[%clk 0:02:56.8]} 13. dxc5 {[%clk 0:02:13.3]} 13... Ndxc5 {[%clk 0:02:47.3]}
14. Bb1 {[%clk 0:01:58.4]} 14... Qd7 {[%clk 0:02:10.9]} 15. Ne5 {[%clk
0:01:45.8]} 15... Qe6 {[%clk 0:02:01.2]} 16. Nb5 {[%clk 0:01:39.3]} 16... a6
{[%clk 0:01:54.2]} 17. Nd4 {[%clk 0:01:37.2]} 17... Qf6 {[%clk 0:01:44.2]} 18.
Qe2 {[%clk 0:01:30.9]} 18... Bd6 {[%clk 0:01:41.5]} 19. Ng4 {[%clk 0:01:21.7]}
19... Qd8 {[%clk 0:01:42.1]} 20. Bxd6 {[%clk 0:01:20.6]} 20... Qxd6 {[%clk
0:01:43]} 21. Rfd1 {[%clk 0:01:17.7]} 21... Rfe8 {[%clk 0:01:35.5]} 22. Qf3
{[%clk 0:01:10.9]} 22... Ne6 {[%clk 0:01:15]} 23. Rxc8 {[%clk 0:01:02.2]} 23...
Rxc8 {[%clk 0:01:02.2]} 24. Nf5 {[%clk 0:00:49.9]} 24... Qf8 {[%clk 0:00:40.2]}
25. Bd3 {[%clk 0:00:45.3]} 25... N6c5 {[%clk 0:00:37.6]} 26. Bf1 {[%clk
0:00:41.3]} 26... Nc3 {[%clk 0:00:30.8]} 27. Rd4 {[%clk 0:00:28.6]} 27... Ne6
{[%clk 0:00:25.9]} 28. Rd3 {[%clk 0:00:26.4]} 28... Ne4 {[%clk 0:00:21.2]} 29.
Ne5 {[%clk 0:00:19.6]} 29... a5 {[%clk 0:00:14.2]} 30. Qg4 {[%clk 0:00:11]}
30... Nf6 {[%clk 0:00:11]} 31. Nh6+ {[%clk 0:00:09.8]} 31... Kh8 {[%clk
0:00:10.3]} 32. Nhxf7+ {[%clk 0:00:10.5]} 32... Kg8 {[%clk 0:00:10.6]} 33. Qxe6
{[%clk 0:00:10.8]} 33... Re8 {[%clk 0:00:08.3]} 34. Qxb6 {[%clk 0:00:07.8]}
34... Rb8 {[%clk 0:00:03]} 35. Qxa5 {[%clk 0:00:08]} 35... d4 {[%clk 0:00:01.8]}
36. exd4 {[%clk 0:00:07.5]} 36... Qc8 {[%clk 0:00:01.1]} 37. Qe1 {[%clk
0:00:06]} 37... Ra8 {[%clk 0:00:02]} 38. Qe3 {[%clk 0:00:06.2]} 38... Qe6 {[%clk
0:00:02.4]} 39. Ng5 {[%clk 0:00:05.9]} 39... Qd5 {[%clk 0:00:02.2]} 40. Qg3
{[%clk 0:00:06.3]} 40... Rxa2 {[%clk 0:00:01.5]} 41. Rd1 {[%clk 0:00:05.8]}
41... Rb2 {[%clk 0:00:01.3]} 42. Bc4 {[%clk 0:00:06.3]} 1-0

[Event "Late-Titled-Tuesday-Blitz-December-26-2023"]
[Site "Chess.com"]
[Date "2023.12.26"]
[Round "6"]
[White "a-z30"]
[Black "lefonghua"]
[Result "1-0"]
[WhiteElo "2515"]
[BlackElo "2665"]
[TimeControl "180+1"]
[EndTime "15:07:26 PST"]
[Termination "a-z30 won by resignation"]

1. c4 {[%clk 0:03:00.9]} 1... Nf6 {[%clk 0:02:57.4]} 2. Nc3 {[%clk 0:02:55.7]}
2... g6 {[%clk 0:02:56.8]} 3. e4 {[%clk 0:02:52.1]} 3... d6 {[%clk 0:02:56.8]}
4. d4 {[%clk 0:02:51.7]} 4... Bg7 {[%clk 0:02:57.5]} 5. Nf3 {[%clk 0:02:52]}
5... O-O {[%clk 0:02:58.2]} 6. Be2 {[%clk 0:02:52.4]} 6... Bg4 {[%clk
0:02:58.6]} 7. Be3 {[%clk 0:02:50.5]} 7... Nfd7 {[%clk 0:02:58.4]} 8. Ng1 {[%clk
0:02:48.9]} 8... Bxe2 {[%clk 0:02:58.4]} 9. Ngxe2 {[%clk 0:02:49.7]} 9... c5
{[%clk 0:02:52.8]} 10. O-O {[%clk 0:02:45]} 10... cxd4 {[%clk 0:02:52.5]} 11.
Nxd4 {[%clk 0:02:39.2]} 11... Nc6 {[%clk 0:02:52.5]} 12. Rc1 {[%clk 0:02:37.8]}
12... Nxd4 {[%clk 0:02:45.9]} 13. Bxd4 {[%clk 0:02:37.3]} 13... Bxd4 {[%clk
0:02:46.1]} 14. Qxd4 {[%clk 0:02:36.6]} 14... Qb6 {[%clk 0:02:46.8]} 15. Qd2
{[%clk 0:02:20.5]} 15... Nf6 {[%clk 0:02:45.2]} 16. b3 {[%clk 0:02:11.6]} 16...
Rac8 {[%clk 0:02:36.6]} 17. Nd5 {[%clk 0:02:09.7]} 17... Nxd5 {[%clk 0:02:35.6]}
18. exd5 {[%clk 0:02:09.2]} 18... Rfe8 {[%clk 0:02:35.3]} 19. h4 {[%clk
0:02:06.8]} 19... e5 {[%clk 0:02:29.7]} 20. dxe6 {[%clk 0:02:05]} 20... Rxe6
{[%clk 0:02:29.7]} 21. Rfe1 {[%clk 0:01:59.5]} 21... Rce8 {[%clk 0:02:29.3]} 22.
Rxe6 {[%clk 0:01:38.3]} 22... Rxe6 {[%clk 0:02:30.2]} 23. h5 {[%clk 0:01:35.5]}
23... Qc5 {[%clk 0:02:24.7]} 24. h6 {[%clk 0:01:27.8]} 24... Qh5 {[%clk
0:02:18.5]} 25. c5 {[%clk 0:01:22.3]} 25... d5 {[%clk 0:02:05.9]} 26. b4 {[%clk
0:01:18.2]} 26... a6 {[%clk 0:01:50.8]} 27. a4 {[%clk 0:01:17.5]} 27... Re4
{[%clk 0:01:42.7]} 28. g3 {[%clk 0:00:56.7]} 28... Qf3 {[%clk 0:01:32]} 29. Rc3
{[%clk 0:00:43.9]} 29... Qf5 {[%clk 0:01:21.2]} 30. b5 {[%clk 0:00:38.4]} 30...
Rxa4 {[%clk 0:01:05.4]} 31. c6 {[%clk 0:00:32.4]} 31... Ra1+ {[%clk 0:00:56.9]}
32. Rc1 {[%clk 0:00:31.8]} 32... Rxc1+ {[%clk 0:00:47.7]} 33. Qxc1 {[%clk
0:00:31.9]} 33... Qc8 {[%clk 0:00:31.2]} 34. c7 {[%clk 0:00:30.1]} 34... Kf8
{[%clk 0:00:25.2]} 35. Qc5+ {[%clk 0:00:27.1]} 35... Ke8 {[%clk 0:00:25.5]} 36.
b6 {[%clk 0:00:26.8]} 36... d4 {[%clk 0:00:15.9]} 37. Qxd4 {[%clk 0:00:26.2]}
37... a5 {[%clk 0:00:14.5]} 38. Qe5+ {[%clk 0:00:23.9]} 38... Kf8 {[%clk
0:00:12.9]} 39. Qc5+ {[%clk 0:00:23.1]} 39... Ke8 {[%clk 0:00:13.1]} 40. Qxa5
{[%clk 0:00:23.9]} 40... Kd7 {[%clk 0:00:11.5]} 41. Qd5+ {[%clk 0:00:23.7]}
41... Ke7 {[%clk 0:00:12.1]} 42. Qe5+ {[%clk 0:00:23.1]} 42... Kd7 {[%clk
0:00:12.7]} 43. Qf4 {[%clk 0:00:21.1]} 43... Kc6 {[%clk 0:00:12.4]} 44. Qxf7
{[%clk 0:00:19.7]} 44... Kxb6 {[%clk 0:00:12.9]} 45. Qxh7 {[%clk 0:00:18.9]}
45... Qf5 {[%clk 0:00:12.7]} 46. Qe7 {[%clk 0:00:14.3]} 46... Qb1+ {[%clk
0:00:11.3]} 47. Kh2 {[%clk 0:00:14.5]} 47... Qc2 {[%clk 0:00:09]} 48. Qe3+
{[%clk 0:00:11.6]} 48... Kxc7 {[%clk 0:00:08.9]} 49. h7 {[%clk 0:00:12.3]} 49...
Qb2 {[%clk 0:00:08.6]} 50. Qe7+ {[%clk 0:00:11.3]} 50... Kb6 {[%clk 0:00:07.7]}
51. Qf8 {[%clk 0:00:11.6]} 51... g5 {[%clk 0:00:02.1]} 52. h8=Q {[%clk
0:00:12.5]} 52... Qxh8+ {[%clk 0:00:01.8]} 1-0

[Event "Late-Titled-Tuesday-Blitz-December-26-2023"]
[Site "Chess.com"]
[Date "2023.12.26"]
[Round "6"]
[White "rdarruda"]
[Black "McCarthyStone"]
[Result "1-0"]
[WhiteElo "2514"]
[BlackElo "2398"]
[TimeControl "180+1"]
[EndTime "15:07:29 PST"]
[Termination "rdarruda won by resignation"]

1. Nf3 {[%clk 0:01:51.6]} 1... d5 {[%clk 0:02:57]} 2. d4 {[%clk 0:01:52.5]} 2...
Nf6 {[%clk 0:02:56.6]} 3. g3 {[%clk 0:01:53.4]} 3... Bf5 {[%clk 0:02:56.3]} 4.
Bg2 {[%clk 0:01:54]} 4... Nc6 {[%clk 0:02:56.3]} 5. O-O {[%clk 0:01:54.9]} 5...
Qd7 {[%clk 0:02:54.4]} 6. c4 {[%clk 0:01:53.7]} 6... e6 {[%clk 0:02:51.1]} 7.
Qa4 {[%clk 0:01:53.3]} 7... h5 {[%clk 0:02:50.5]} 8. Nc3 {[%clk 0:01:51.2]} 8...
O-O-O {[%clk 0:02:49.9]} 9. Ne5 {[%clk 0:01:50.8]} 9... Nxe5 {[%clk 0:02:49.5]}
10. dxe5 {[%clk 0:01:49.7]} 10... Qxa4 {[%clk 0:02:49.2]} 11. Nxa4 {[%clk
0:01:50.6]} 11... Nd7 {[%clk 0:02:41.6]} 12. cxd5 {[%clk 0:01:45.7]} 12... Nxe5
{[%clk 0:02:35.4]} 13. e4 {[%clk 0:01:42.7]} 13... Bg6 {[%clk 0:02:20]} 14. Be3
{[%clk 0:01:41.4]} 14... exd5 {[%clk 0:02:15.1]} 15. exd5 {[%clk 0:01:40.7]}
15... Kb8 {[%clk 0:02:15.6]} 16. Rac1 {[%clk 0:01:30.5]} 16... Bd6 {[%clk
0:02:15.6]} 17. Rfd1 {[%clk 0:01:26.2]} 17... h4 {[%clk 0:02:14.7]} 18. Nc5
{[%clk 0:01:23.7]} 18... h3 {[%clk 0:02:14.1]} 19. Bh1 {[%clk 0:01:23.3]} 19...
Bh5 {[%clk 0:02:11]} 20. f4 {[%clk 0:01:08.5]} 20... Nf3+ {[%clk 0:02:07.4]} 21.
Bxf3 {[%clk 0:00:56.2]} 21... Bxf3 {[%clk 0:02:07.2]} 22. Rd2 {[%clk 0:00:56.1]}
22... g5 {[%clk 0:02:07.3]} 23. fxg5 {[%clk 0:00:54.9]} 23... Rde8 {[%clk
0:01:56.3]} 24. Bf4 {[%clk 0:00:50.8]} 24... Bxf4 {[%clk 0:01:24.5]} 25. gxf4
{[%clk 0:00:51.7]} 25... Rh4 {[%clk 0:01:24.6]} 26. Nd7+ {[%clk 0:00:45.9]}
26... Kc8 {[%clk 0:01:19.5]} 27. Nf6 {[%clk 0:00:44.4]} 27... Rd8 {[%clk
0:00:51.3]} 28. d6 {[%clk 0:00:44.6]} 28... c6 {[%clk 0:00:51.8]} 29. Rc4 {[%clk
0:00:41.1]} 29... Bg2 {[%clk 0:00:39.5]} 30. Kf2 {[%clk 0:00:39.4]} 30... b5
{[%clk 0:00:33.2]} 31. Rcd4 {[%clk 0:00:38.3]} 31... c5 {[%clk 0:00:32.1]} 32.
Rc2 {[%clk 0:00:38.4]} 32... Kb7 {[%clk 0:00:15.3]} 33. Rxc5 {[%clk 0:00:37.7]}
33... Kb6 {[%clk 0:00:16]} 34. Rc2 {[%clk 0:00:33.9]} 34... Rhh8 {[%clk
0:00:13.8]} 35. d7 {[%clk 0:00:23.1]} 35... a6 {[%clk 0:00:12.2]} 36. Rd6+
{[%clk 0:00:21.5]} 36... Kb7 {[%clk 0:00:12.6]} 37. Kg3 {[%clk 0:00:19]} 37...
Bf1 {[%clk 0:00:05.1]} 38. Rc1 {[%clk 0:00:16.4]} 38... Bc4 {[%clk 0:00:05.3]}
39. b3 {[%clk 0:00:16.9]} 39... Be6 {[%clk 0:00:05.5]} 40. Rcd1 {[%clk
0:00:14.5]} 40... a5 {[%clk 0:00:03.4]} 41. R1d4 {[%clk 0:00:14.6]} 41... Rhf8
{[%clk 0:00:02.8]} 42. Kf3 {[%clk 0:00:11.8]} 42... Kc7 {[%clk 0:00:03.4]} 43.
Ke4 {[%clk 0:00:12.2]} 43... Rh8 {[%clk 0:00:03.2]} 44. f5 {[%clk 0:00:12.5]}
44... Rh4+ {[%clk 0:00:03.5]} 45. Ke5 {[%clk 0:00:13.2]} 45... Rxd4 {[%clk
0:00:03.7]} 46. Rxd4 {[%clk 0:00:14]} 46... Bxd7 {[%clk 0:00:03.5]} 47. Rxd7+
{[%clk 0:00:13.7]} 47... Rxd7 {[%clk 0:00:04.4]} 48. Nxd7 {[%clk 0:00:14]} 48...
Kxd7 {[%clk 0:00:05.3]} 49. Kf6 {[%clk 0:00:14.3]} 49... Ke8 {[%clk 0:00:05.6]}
50. Kg7 {[%clk 0:00:14.6]} 50... a4 {[%clk 0:00:06.2]} 51. g6 {[%clk 0:00:15.1]}
51... axb3 {[%clk 0:00:05.5]} 52. axb3 {[%clk 0:00:15.3]} 52... fxg6 {[%clk
0:00:05.9]} 53. f6 {[%clk 0:00:15.7]} 1-0